[Event "Titled Tuesday Blitz April 11 Late 2023"]
[White "Taboas Rodriguez, Daniel"]
[Black "Castaneda, Jhon David"]
[WhiteFideId "2208466"]
[BlackFideId "4405048"]
[WhiteElo "2365"]
[BlackElo "2102"]
[Result "0-1"]
[Round "08"]
[TimeControl "180+2"]
[Date "2023.04.11"]
[WhiteClock "0:00:28"]
[BlackClock "0:00:17"]

1. d4 {[%clk 0:03:00]}  Nf6 {[%clk 0:02:59]} 2. Nf3 {[%clk 0:03:01]}  e6 {[%clk 0:03:00]} 3. c4 {[%clk 0:03:01]}  b6 {[%clk 0:02:59]} 4. Nc3 {[%clk 0:03:01]}  Bb4 {[%clk 0:02:59]} 5. Qc2 {[%clk 0:03:00]}  Bb7 {[%clk 0:02:57]} 6. a3 {[%clk 0:03:01]}  Bxc3+ {[%clk 0:02:50]} 7. Qxc3 {[%clk 0:03:01]}  Ne4 {[%clk 0:02:51]} 8. Qc2 {[%clk 0:03:01]}  d5 {[%clk 0:02:51]} 9. g3 {[%clk 0:03:02]}  dxc4 {[%clk 0:02:49]} 10. Bg2 {[%clk 0:03:01]}  Nd6 {[%clk 0:02:48]} 11. O-O {[%clk 0:03:00]}  O-O {[%clk 0:02:48]} 12. Re1 {[%clk 0:03:00]}  Be4 {[%clk 0:02:45]} 13. Qc3 {[%clk 0:02:54]}  Nd7 {[%clk 0:02:38]} 14. Bg5 {[%clk 0:02:54]}  f6 {[%clk 0:02:32]} 15. Bf4 {[%clk 0:02:52]}  Qc8 {[%clk 0:02:19]} 16. Bh3 {[%clk 0:02:49]}  f5 {[%clk 0:02:11]} 17. Ng5 {[%clk 0:02:43]}  Bd5 {[%clk 0:02:11]} 18. Bxd6 {[%clk 0:02:33]}  cxd6 {[%clk 0:02:12]} 19. e4 {[%clk 0:02:33]}  Bb7 {[%clk 0:01:50]} 20. Nxe6 {[%clk 0:02:27]}  Bxe4 {[%clk 0:01:49]} 21. Nxf8 {[%clk 0:02:23]}  Kxf8 {[%clk 0:01:45]} 22. f3 {[%clk 0:01:57]}  Bd3 {[%clk 0:01:36]} 23. Bf1 {[%clk 0:01:55]}  Bxf1 {[%clk 0:01:32]} 24. Kxf1 {[%clk 0:01:55]}  Nf6 {[%clk 0:01:31]} 25. Rad1 {[%clk 0:01:48]}  Nd5 {[%clk 0:01:24]} 26. Qd2 {[%clk 0:01:42]}  h6 {[%clk 0:01:17]} 27. Qe2 {[%clk 0:01:32]}  f4 {[%clk 0:01:15]} 28. Rc1 {[%clk 0:01:20]}  Qh3+ {[%clk 0:01:09]} 29. Kg1 {[%clk 0:01:17]}  fxg3 {[%clk 0:01:06]} 30. Rxc4 {[%clk 0:01:14]}  gxh2+ {[%clk 0:00:57]} 31. Qxh2 {[%clk 0:01:15]}  Qd7 {[%clk 0:00:46]} 32. Rc2 {[%clk 0:01:06]}  Kg8 {[%clk 0:00:44]} 33. Rce2 {[%clk 0:01:06]}  Rf8 {[%clk 0:00:43]} 34. Re6 {[%clk 0:00:49]}  Nf4 {[%clk 0:00:41]} 35. Re7 {[%clk 0:00:47]}  Qf5 {[%clk 0:00:41]} 36. Qg3 {[%clk 0:00:46]}  Rf7 {[%clk 0:00:38]} 37. Rxf7 {[%clk 0:00:43]}  Kxf7 {[%clk 0:00:39]} 38. Re4 {[%clk 0:00:41]}  Qxe4 {[%clk 0:00:35]} 39. fxe4 {[%clk 0:00:32]}  Ne2+ {[%clk 0:00:35]} 40. Kf2 {[%clk 0:00:33]}  Nxg3 {[%clk 0:00:35]} 41. Kxg3 {[%clk 0:00:34]}  g5 {[%clk 0:00:33]} 42. a4 {[%clk 0:00:32]}  h5 {[%clk 0:00:27]} 43. b4 {[%clk 0:00:32]}  a6 {[%clk 0:00:26]} 44. a5 {[%clk 0:00:30]}  bxa5 {[%clk 0:00:26]} 45. bxa5 {[%clk 0:00:30]}  Ke6 {[%clk 0:00:25]} 46. Kf3 {[%clk 0:00:31]}  g4+ {[%clk 0:00:24]} 47. Kf4 {[%clk 0:00:31]}  Kd7 {[%clk 0:00:20]} 48. Kg3 {[%clk 0:00:28]}  Kc6 {[%clk 0:00:19]} 49. Kf4 {[%clk 0:00:28]}  Kb5 {[%clk 0:00:18]} 50. e5 {[%clk 0:00:28]}  dxe5+ {[%clk 0:00:18]} 51. dxe5 {[%clk 0:00:28]}  Kc6 {[%clk 0:00:18]} 52. Kg5 {[%clk 0:00:27]}  Kd7 {[%clk 0:00:17]} 53. Kxh5 {[%clk 0:00:24]}  g3 {[%clk 0:00:16]} 54. Kg6 {[%clk 0:00:25]}  g2 {[%clk 0:00:16]} 55. Kf7 {[%clk 0:00:26]}  g1=Q {[%clk 0:00:16]} 56. e6+ {[%clk 0:00:27]}  Kd6 {[%clk 0:00:17]} 57. e7 {[%clk 0:00:28]}  Qf2+ {[%clk 0:00:17]} 58. Ke8 {[%clk 0:00:28]}  Qe3 {[%clk 0:00:17]} 0-1


[Site "https://www.chess.com"]

[Event "Titled Tuesday Blitz April 11 Late 2023"]
[White "Martinez Reyes, Pedro Ramon"]
[Black "Erzhanov, Arman"]
[WhiteFideId "3901807"]
[BlackFideId "4138821"]
[WhiteElo "2340"]
[BlackElo "2138"]
[Result "1-0"]
[Round "08"]
[TimeControl "180+2"]
[Date "2023.04.11"]
[WhiteClock "0:01:54"]
[BlackClock "0:00:16"]

1. d3 {[%clk 0:03:00]}  e5 {[%clk 0:02:58]} 2. Nf3 {[%clk 0:03:01]}  d6 {[%clk 0:02:56]} 3. g3 {[%clk 0:03:02]}  Nf6 {[%clk 0:02:57]} 4. Bg2 {[%clk 0:03:02]}  Be7 {[%clk 0:02:57]} 5. O-O {[%clk 0:03:03]}  O-O {[%clk 0:02:58]} 6. c4 {[%clk 0:03:04]}  c6 {[%clk 0:02:57]} 7. Nc3 {[%clk 0:03:05]}  Nbd7 {[%clk 0:02:58]} 8. Rb1 {[%clk 0:03:05]}  Re8 {[%clk 0:02:58]} 9. b4 {[%clk 0:03:05]}  Bf8 {[%clk 0:02:59]} 10. b5 {[%clk 0:03:06]}  Qc7 {[%clk 0:02:58]} 11. Bd2 {[%clk 0:03:02]}  Nc5 {[%clk 0:02:58]} 12. Na4 {[%clk 0:03:01]}  Nxa4 {[%clk 0:02:54]} 13. Qxa4 {[%clk 0:03:01]}  Bd7 {[%clk 0:02:54]} 14. bxc6 {[%clk 0:03:02]}  Bxc6 {[%clk 0:02:53]} 15. Qb3 {[%clk 0:02:58]}  b6 {[%clk 0:02:51]} 16. a4 {[%clk 0:02:57]}  Rab8 {[%clk 0:02:50]} 17. Qa2 {[%clk 0:02:55]}  a5 {[%clk 0:02:46]} 18. Ne1 {[%clk 0:02:48]}  Nd7 {[%clk 0:02:44]} 19. Nc2 {[%clk 0:02:44]}  Nc5 {[%clk 0:02:44]} 20. Bxc6 {[%clk 0:02:32]}  Qxc6 {[%clk 0:02:44]} 21. Ra1 {[%clk 0:02:33]}  h5 {[%clk 0:02:39]} 22. Ne3 {[%clk 0:02:32]}  h4 {[%clk 0:02:37]} 23. Nd5 {[%clk 0:02:32]}  h3 {[%clk 0:02:37]} 24. Be3 {[%clk 0:02:30]}  Rb7 {[%clk 0:02:30]} 25. Rfb1 {[%clk 0:02:23]}  Reb8 {[%clk 0:02:30]} 26. Bxc5 {[%clk 0:02:21]}  bxc5 {[%clk 0:02:28]} 27. Rb5 {[%clk 0:02:20]}  Qd7 {[%clk 0:02:00]} 28. f3 {[%clk 0:02:13]}  f5 {[%clk 0:01:48]} 29. Rab1 {[%clk 0:02:12]}  f4 {[%clk 0:01:47]} 30. g4 {[%clk 0:02:09]}  Be7 {[%clk 0:01:40]} 31. Rxb7 {[%clk 0:02:07]}  Rxb7 {[%clk 0:01:40]} 32. Rb5 {[%clk 0:02:08]}  Bd8 {[%clk 0:01:39]} 33. Qb3 {[%clk 0:02:08]}  Rxb5 {[%clk 0:01:35]} 34. cxb5 {[%clk 0:02:08]}  Kf8 {[%clk 0:01:34]} 35. Qc4 {[%clk 0:02:08]}  Qb7 {[%clk 0:01:20]} 36. Kf1 {[%clk 0:02:06]}  Bb6 {[%clk 0:01:20]} 37. Qe4 {[%clk 0:02:03]}  Bd8 {[%clk 0:01:03]} 38. e3 {[%clk 0:01:55]}  fxe3 {[%clk 0:01:02]} 39. Ke2 {[%clk 0:01:56]}  Qf7 {[%clk 0:01:00]} 40. Qf5 {[%clk 0:01:52]}  Qxf5 {[%clk 0:00:54]} 41. gxf5 {[%clk 0:01:53]}  Ke8 {[%clk 0:00:55]} 42. Kxe3 {[%clk 0:01:52]}  Kd7 {[%clk 0:00:55]} 43. Ke4 {[%clk 0:01:51]}  Bg5 {[%clk 0:00:54]} 44. f4 {[%clk 0:01:47]}  exf4 {[%clk 0:00:53]} 45. Nxf4 {[%clk 0:01:48]}  d5+ {[%clk 0:00:32]} 46. Nxd5 {[%clk 0:01:46]}  Bh4 {[%clk 0:00:30]} 47. Nf4 {[%clk 0:01:46]}  Bg3 {[%clk 0:00:30]} 48. Nxh3 {[%clk 0:01:46]}  Bxh2 {[%clk 0:00:30]} 49. Nf4 {[%clk 0:01:47]}  Kd6 {[%clk 0:00:27]} 50. Ne6 {[%clk 0:01:47]}  g6 {[%clk 0:00:25]} 51. Nf4 {[%clk 0:01:40]}  gxf5+ {[%clk 0:00:24]} 52. Kxf5 {[%clk 0:01:41]}  Bg3 {[%clk 0:00:20]} 53. Ke4 {[%clk 0:01:41]}  Bh2 {[%clk 0:00:20]} 54. Nd5 {[%clk 0:01:41]}  Bg3 {[%clk 0:00:19]} 55. Ne3 {[%clk 0:01:42]}  Bh2 {[%clk 0:00:18]} 56. Nc4+ {[%clk 0:01:42]}  Kc7 {[%clk 0:00:18]} 57. Nxa5 {[%clk 0:01:43]}  Bg1 {[%clk 0:00:16]} 58. Nc4 {[%clk 0:01:44]}  Bf2 {[%clk 0:00:15]} 59. Kd5 {[%clk 0:01:45]}  Bg1 {[%clk 0:00:15]} 60. a5 {[%clk 0:01:46]}  Kb7 {[%clk 0:00:15]} 61. a6+ {[%clk 0:01:47]}  Ka7 {[%clk 0:00:15]} 62. Kc6 {[%clk 0:01:47]}  Bh2 {[%clk 0:00:14]} 63. Kxc5 {[%clk 0:01:46]}  Bb8 {[%clk 0:00:13]} 64. Kc6 {[%clk 0:01:47]}  Bf4 {[%clk 0:00:12]} 65. d4 {[%clk 0:01:48]}  Bg3 {[%clk 0:00:12]} 66. d5 {[%clk 0:01:49]}  Bf4 {[%clk 0:00:13]} 67. d6 {[%clk 0:01:50]}  Bg5 {[%clk 0:00:12]} 68. d7 {[%clk 0:01:50]}  Bd8 {[%clk 0:00:12]} 69. Nd6 {[%clk 0:01:51]}  Kb8 {[%clk 0:00:12]} 70. Nf7 {[%clk 0:01:51]}  Ba5 {[%clk 0:00:12]} 71. d8=Q+ {[%clk 0:01:51]}  Bxd8 {[%clk 0:00:12]} 72. Nxd8 {[%clk 0:01:52]}  Ka8 {[%clk 0:00:12]} 73. b6 {[%clk 0:01:52]}  Kb8 {[%clk 0:00:13]} 74. b7 {[%clk 0:01:51]}  Ka7 {[%clk 0:00:13]} 75. Kc7 {[%clk 0:01:51]}  Kxa6 {[%clk 0:00:14]} 76. b8=Q {[%clk 0:01:52]}  Ka5 {[%clk 0:00:14]} 77. Kc6 {[%clk 0:01:52]}  Ka4 {[%clk 0:00:15]} 78. Kc5 {[%clk 0:01:53]}  Ka3 {[%clk 0:00:16]} 79. Kc4 {[%clk 0:01:54]}  Ka4 {[%clk 0:00:16]} 80. Qb4# {[%clk 0:01:54]} 1-0


[Site "https://www.chess.com"]

[Event "Titled Tuesday Blitz April 11 Late 2023"]
[White "Santos Flores, Alberto"]
[Black "Vlassov, Nikolai"]
[WhiteFideId "3601234"]
[BlackFideId "4103360"]
[WhiteElo "2235"]
[BlackElo "2324"]
[Result "1/2-1/2"]
[Round "08"]
[TimeControl "180+2"]
[Date "2023.04.11"]
[WhiteClock "0:00:42"]
[BlackClock "0:00:08"]

1. d4 {[%clk 0:03:00]}  Nf6 {[%clk 0:02:59]} 2. Bf4 {[%clk 0:03:00]}  e6 {[%clk 0:02:57]} 3. e3 {[%clk 0:02:59]}  b6 {[%clk 0:02:54]} 4. h3 {[%clk 0:02:58]}  Bb7 {[%clk 0:02:54]} 5. Nf3 {[%clk 0:02:59]}  c5 {[%clk 0:02:54]} 6. c3 {[%clk 0:02:58]}  Be7 {[%clk 0:02:54]} 7. Nbd2 {[%clk 0:02:58]}  h6 {[%clk 0:02:53]} 8. Bd3 {[%clk 0:02:57]}  d6 {[%clk 0:02:54]} 9. O-O {[%clk 0:02:56]}  g5 {[%clk 0:02:53]} 10. Bh2 {[%clk 0:02:52]}  g4 {[%clk 0:02:54]} 11. hxg4 {[%clk 0:02:53]}  Nxg4 {[%clk 0:02:54]} 12. Bf4 {[%clk 0:02:51]}  Nd7 {[%clk 0:02:52]} 13. Be4 {[%clk 0:02:45]}  Qc7 {[%clk 0:02:50]} 14. Bxb7 {[%clk 0:02:44]}  Qxb7 {[%clk 0:02:50]} 15. Qc2 {[%clk 0:02:42]}  O-O-O {[%clk 0:02:47]} 16. Qe4 {[%clk 0:02:42]}  e5 {[%clk 0:02:14]} 17. dxe5 {[%clk 0:02:39]}  dxe5 {[%clk 0:02:13]} 18. Qxb7+ {[%clk 0:02:17]}  Kxb7 {[%clk 0:02:12]} 19. Bg3 {[%clk 0:02:18]}  f5 {[%clk 0:01:55]} 20. Nc4 {[%clk 0:02:14]}  e4 {[%clk 0:01:50]} 21. Nfe5 {[%clk 0:02:14]}  Ndxe5 {[%clk 0:01:42]} 22. Nxe5 {[%clk 0:02:15]}  Rd2 {[%clk 0:01:27]} 23. Nc4 {[%clk 0:02:10]}  Rd5 {[%clk 0:01:24]} 24. Rfd1 {[%clk 0:02:02]}  Rhd8 {[%clk 0:01:22]} 25. Rxd5 {[%clk 0:02:02]}  Rxd5 {[%clk 0:01:22]} 26. a4 {[%clk 0:02:00]}  a6 {[%clk 0:01:14]} 27. Kf1 {[%clk 0:01:58]}  h5 {[%clk 0:01:05]} 28. Ke2 {[%clk 0:01:56]}  h4 {[%clk 0:01:04]} 29. Bf4 {[%clk 0:01:56]}  Kc6 {[%clk 0:01:02]} 30. f3 {[%clk 0:01:52]}  Nf6 {[%clk 0:00:53]} 31. Rd1 {[%clk 0:01:43]}  b5 {[%clk 0:00:51]} 32. axb5+ {[%clk 0:01:41]}  axb5 {[%clk 0:00:52]} 33. Ne5+ {[%clk 0:01:37]}  Kb6 {[%clk 0:00:49]} 34. Ng6 {[%clk 0:01:34]}  Rxd1 {[%clk 0:00:27]} 35. Kxd1 {[%clk 0:01:34]}  exf3 {[%clk 0:00:26]} 36. gxf3 {[%clk 0:01:21]}  Nd5 {[%clk 0:00:26]} 37. Nxe7 {[%clk 0:01:16]}  Nxe7 {[%clk 0:00:19]} 38. Ke2 {[%clk 0:01:13]}  Ng6 {[%clk 0:00:12]} 39. Bh2 {[%clk 0:01:11]}  Ka5 {[%clk 0:00:13]} 40. b3 {[%clk 0:01:07]}  c4 {[%clk 0:00:12]} 41. bxc4 {[%clk 0:01:05]}  bxc4 {[%clk 0:00:13]} 42. e4 {[%clk 0:01:05]}  f4 {[%clk 0:00:09]} 43. e5 {[%clk 0:01:01]}  Nxe5 {[%clk 0:00:08]} 44. Bxf4 {[%clk 0:01:01]}  Ng6 {[%clk 0:00:08]} 45. Bh2 {[%clk 0:00:57]}  Ka4 {[%clk 0:00:08]} 46. Ke3 {[%clk 0:00:56]}  Kb3 {[%clk 0:00:09]} 47. Kd4 {[%clk 0:00:56]}  Ne7 {[%clk 0:00:08]} 48. f4 {[%clk 0:00:48]}  Nf5+ {[%clk 0:00:08]} 49. Ke5 {[%clk 0:00:49]}  Ng3 {[%clk 0:00:08]} 50. f5 {[%clk 0:00:45]}  Nxf5 {[%clk 0:00:06]} 51. Kxf5 {[%clk 0:00:45]}  Kxc3 {[%clk 0:00:07]} 52. Be5+ {[%clk 0:00:42]}  Kd3 {[%clk 0:00:07]} 53. Kg4 {[%clk 0:00:42]}  Ke4 {[%clk 0:00:07]} 54. Ba1 {[%clk 0:00:41]}  Kd3 {[%clk 0:00:07]} 55. Kxh4 {[%clk 0:00:42]}  c3 {[%clk 0:00:08]} 56. Bxc3 {[%clk 0:00:42]} 1/2-1/2


[Site "https://www.chess.com"]

[Event "Titled Tuesday Blitz April 11 Late 2023"]
[White "Senthilkumar, Pranav"]
[Black "Klenburg, Michael"]
[WhiteFideId "2083477"]
[BlackFideId "14102072"]
[WhiteElo "1860"]
[BlackElo "2396"]
[Result "0-1"]
[Round "08"]
[TimeControl "180+2"]
[Date "2023.04.11"]
[WhiteClock "0:00:25"]
[BlackClock "0:00:50"]

1. Nf3 {[%clk 0:03:00]}  Nf6 {[%clk 0:02:59]} 2. d4 {[%clk 0:02:59]}  g6 {[%clk 0:02:58]} 3. Bg5 {[%clk 0:02:59]}  Bg7 {[%clk 0:02:58]} 4. Nbd2 {[%clk 0:02:59]}  O-O {[%clk 0:02:58]} 5. e4 {[%clk 0:02:59]}  d6 {[%clk 0:02:58]} 6. Be2 {[%clk 0:02:59]}  c5 {[%clk 0:02:58]} 7. c3 {[%clk 0:02:59]}  cxd4 {[%clk 0:02:57]} 8. cxd4 {[%clk 0:02:59]}  Nc6 {[%clk 0:02:57]} 9. O-O {[%clk 0:02:59]}  h6 {[%clk 0:02:54]} 10. Bh4 {[%clk 0:02:57]}  Nh5 {[%clk 0:02:54]} 11. d5 {[%clk 0:02:53]}  Nb8 {[%clk 0:02:52]} 12. Nc4 {[%clk 0:02:47]}  Nf4 {[%clk 0:02:50]} 13. Bg3 {[%clk 0:02:43]}  Nxe2+ {[%clk 0:02:50]} 14. Qxe2 {[%clk 0:02:44]}  Nd7 {[%clk 0:02:49]} 15. Rfd1 {[%clk 0:02:40]}  Nb6 {[%clk 0:02:38]} 16. e5 {[%clk 0:02:36]}  Nxc4 {[%clk 0:02:37]} 17. Qxc4 {[%clk 0:02:36]}  Qb6 {[%clk 0:02:22]} 18. b3 {[%clk 0:02:27]}  Bf5 {[%clk 0:02:18]} 19. Rac1 {[%clk 0:02:22]}  Rac8 {[%clk 0:02:17]} 20. Qe2 {[%clk 0:02:21]}  Bg4 {[%clk 0:02:10]} 21. h3 {[%clk 0:02:18]}  Bxf3 {[%clk 0:02:08]} 22. Qxf3 {[%clk 0:02:19]}  dxe5 {[%clk 0:02:07]} 23. Qe2 {[%clk 0:01:59]}  Qd6 {[%clk 0:02:05]} 24. Qb5 {[%clk 0:01:50]}  b6 {[%clk 0:01:58]} 25. f3 {[%clk 0:01:49]}  Rfd8 {[%clk 0:01:54]} 26. Rxc8 {[%clk 0:01:45]}  Rxc8 {[%clk 0:01:53]} 27. Qa6 {[%clk 0:01:43]}  Rc7 {[%clk 0:01:52]} 28. Bf2 {[%clk 0:01:41]}  e6 {[%clk 0:01:43]} 29. Qb5 {[%clk 0:01:36]}  Rd7 {[%clk 0:01:41]} 30. a4 {[%clk 0:01:13]}  exd5 {[%clk 0:01:40]} 31. a5 {[%clk 0:01:13]}  d4 {[%clk 0:01:39]} 32. axb6 {[%clk 0:01:06]}  axb6 {[%clk 0:01:38]} 33. Be1 {[%clk 0:01:05]}  Qd5 {[%clk 0:01:20]} 34. Qxb6 {[%clk 0:01:04]}  Rb7 {[%clk 0:01:20]} 35. Qa6 {[%clk 0:00:59]}  Qxb3 {[%clk 0:01:19]} 36. Qe2 {[%clk 0:00:54]}  Rc7 {[%clk 0:01:12]} 37. Bg3 {[%clk 0:00:53]}  Rc2 {[%clk 0:01:07]} 38. Qe4 {[%clk 0:00:51]}  Qe3+ {[%clk 0:00:56]} 39. Qxe3 {[%clk 0:00:51]}  dxe3 {[%clk 0:00:56]} 40. Rd5 {[%clk 0:00:26]}  Rc1+ {[%clk 0:00:50]} 41. Kh2 {[%clk 0:00:25]}  e2 {[%clk 0:00:50]} 0-1


[Site "https://www.chess.com"]

[Event "Titled Tuesday Blitz April 11 Late 2023"]
[White "Sabuk, Piotr"]
[Black "Mazurkiewicz, Michal"]
[WhiteFideId "1137565"]
[BlackFideId "1124943"]
[WhiteElo "2298"]
[BlackElo "2054"]
[Result "1-0"]
[Round "08"]
[TimeControl "180+2"]
[Date "2023.04.11"]
[WhiteClock "0:00:16"]
[BlackClock "0:00:01"]

1. d4 {[%clk 0:02:57]}  Nf6 {[%clk 0:02:54]} 2. Nf3 {[%clk 0:02:53]}  g6 {[%clk 0:02:54]} 3. c4 {[%clk 0:02:53]}  Bg7 {[%clk 0:02:55]} 4. Nc3 {[%clk 0:02:53]}  O-O {[%clk 0:02:55]} 5. e4 {[%clk 0:02:52]}  d6 {[%clk 0:02:56]} 6. h3 {[%clk 0:02:52]}  c5 {[%clk 0:02:55]} 7. d5 {[%clk 0:02:46]}  e6 {[%clk 0:02:55]} 8. Bd3 {[%clk 0:02:43]}  exd5 {[%clk 0:02:55]} 9. exd5 {[%clk 0:02:44]}  Re8+ {[%clk 0:02:55]} 10. Be3 {[%clk 0:02:42]}  Nh5 {[%clk 0:02:49]} 11. O-O {[%clk 0:02:35]}  f5 {[%clk 0:02:49]} 12. Bg5 {[%clk 0:02:28]}  Nf6 {[%clk 0:02:46]} 13. Qd2 {[%clk 0:02:25]}  Nbd7 {[%clk 0:02:45]} 14. Rae1 {[%clk 0:02:12]}  Ne5 {[%clk 0:02:38]} 15. Nxe5 {[%clk 0:02:01]}  dxe5 {[%clk 0:02:38]} 16. f4 {[%clk 0:02:01]}  e4 {[%clk 0:02:36]} 17. Be2 {[%clk 0:01:56]}  Bd7 {[%clk 0:02:32]} 18. Kh1 {[%clk 0:01:46]}  Qa5 {[%clk 0:02:19]} 19. Nxe4 {[%clk 0:01:38]}  Qxd2 {[%clk 0:01:43]} 20. Nxd2 {[%clk 0:01:39]}  Re3 {[%clk 0:01:31]} 21. Bf3 {[%clk 0:01:36]}  Rae8 {[%clk 0:01:31]} 22. Rd1 {[%clk 0:01:27]}  b6 {[%clk 0:00:55]} 23. Bh4 {[%clk 0:01:15]}  Rd3 {[%clk 0:00:50]} 24. Nb1 {[%clk 0:01:13]}  Rxd1 {[%clk 0:00:46]} 25. Rxd1 {[%clk 0:01:12]}  Ne4 {[%clk 0:00:42]} 26. b3 {[%clk 0:01:08]}  Bf6 {[%clk 0:00:42]} 27. Bxf6 {[%clk 0:00:55]}  Nxf6 {[%clk 0:00:38]} 28. g3 {[%clk 0:00:47]}  Re3 {[%clk 0:00:32]} 29. Kg2 {[%clk 0:00:47]}  Ne4 {[%clk 0:00:26]} 30. Bxe4 {[%clk 0:00:42]}  fxe4 {[%clk 0:00:26]} 31. Rd2 {[%clk 0:00:30]}  Re1 {[%clk 0:00:26]} 32. Nc3 {[%clk 0:00:28]}  e3 {[%clk 0:00:26]} 33. Re2 {[%clk 0:00:26]}  Rc1 {[%clk 0:00:09]} 34. Rxe3 {[%clk 0:00:26]}  Rc2+ {[%clk 0:00:10]} 35. Kf3 {[%clk 0:00:27]}  Bxh3 {[%clk 0:00:08]} 36. g4 {[%clk 0:00:22]}  h5 {[%clk 0:00:06]} 37. gxh5 {[%clk 0:00:20]}  gxh5 {[%clk 0:00:06]} 38. d6 {[%clk 0:00:20]}  Bg4+ {[%clk 0:00:06]} 39. Kg3 {[%clk 0:00:20]}  Bf5 {[%clk 0:00:04]} 40. Nd5 {[%clk 0:00:19]}  Kf7 {[%clk 0:00:02]} 41. Re5 {[%clk 0:00:17]}  Bd3 {[%clk 0:00:01]} 42. d7 {[%clk 0:00:16]} 1-0


[Site "https://www.chess.com"]

[Event "Titled Tuesday Blitz April 11 Late 2023"]
[White "Thorfinnsson, Bjorn"]
[Black "Guzman Moneo, Alberto"]
[WhiteFideId "2300982"]
[BlackFideId "2209616"]
[WhiteElo "2395"]
[BlackElo "2157"]
[Result "0-1"]
[Round "08"]
[TimeControl "180+2"]
[Date "2023.04.11"]
[WhiteClock "0:01:30"]
[BlackClock "0:01:09"]

1. d4 {[%clk 0:02:55]}  Nf6 {[%clk 0:02:59]} 2. Nf3 {[%clk 0:02:55]}  c5 {[%clk 0:02:59]} 3. c3 {[%clk 0:02:55]}  cxd4 {[%clk 0:02:58]} 4. cxd4 {[%clk 0:02:56]}  d5 {[%clk 0:02:59]} 5. Bg5 {[%clk 0:02:56]}  Nc6 {[%clk 0:02:59]} 6. Nc3 {[%clk 0:02:56]}  Bf5 {[%clk 0:02:56]} 7. e3 {[%clk 0:02:56]}  e6 {[%clk 0:02:53]} 8. Bb5 {[%clk 0:02:53]}  Bb4 {[%clk 0:02:52]} 9. O-O {[%clk 0:02:53]}  O-O {[%clk 0:02:52]} 10. Rc1 {[%clk 0:02:53]}  Rc8 {[%clk 0:02:51]} 11. Qa4 {[%clk 0:02:51]}  Qa5 {[%clk 0:02:43]} 12. Bxf6 {[%clk 0:02:50]}  gxf6 {[%clk 0:02:43]} 13. Bxc6 {[%clk 0:02:48]}  Rxc6 {[%clk 0:02:41]} 14. Qxa5 {[%clk 0:02:46]}  Bxa5 {[%clk 0:02:41]} 15. Nb5 {[%clk 0:02:43]}  Rfc8 {[%clk 0:02:32]} 16. Rxc6 {[%clk 0:02:32]}  Rxc6 {[%clk 0:02:33]} 17. Nxa7 {[%clk 0:02:31]}  Rc2 {[%clk 0:02:32]} 18. b3 {[%clk 0:02:19]}  Rxa2 {[%clk 0:02:29]} 19. Nb5 {[%clk 0:02:19]}  Rb2 {[%clk 0:02:24]} 20. Nd6 {[%clk 0:02:14]}  Bd3 {[%clk 0:02:20]} 21. Ra1 {[%clk 0:02:13]}  Rxb3 {[%clk 0:02:09]} 22. h4 {[%clk 0:02:07]}  b6 {[%clk 0:02:02]} 23. h5 {[%clk 0:02:06]}  Rb1+ {[%clk 0:01:55]} 24. Rxb1 {[%clk 0:02:02]}  Bxb1 {[%clk 0:01:56]} 25. h6 {[%clk 0:02:01]}  Bd3 {[%clk 0:01:52]} 26. Ne8 {[%clk 0:01:55]}  b5 {[%clk 0:01:44]} 27. Nxf6+ {[%clk 0:01:54]}  Kf8 {[%clk 0:01:37]} 28. Ne5 {[%clk 0:01:52]}  Bc2 {[%clk 0:01:33]} 29. f3 {[%clk 0:01:42]}  b4 {[%clk 0:01:26]} 30. e4 {[%clk 0:01:42]}  dxe4 {[%clk 0:01:25]} 31. Nxh7+ {[%clk 0:01:41]}  Ke7 {[%clk 0:01:23]} 32. Ng6+ {[%clk 0:01:31]}  fxg6 {[%clk 0:01:10]} 33. Ng5 {[%clk 0:01:30]}  Bb6 {[%clk 0:01:09]} 0-1


[Site "https://www.chess.com"]

[Event "Titled Tuesday Blitz April 11 Late 2023"]
[White "Zampronha, Wladimir Camilo"]
[Black "Sreyas Payyappat"]
[WhiteFideId "2103087"]
[BlackFideId "46674969"]
[WhiteElo "2176"]
[BlackElo "2083"]
[Result "0-1"]
[Round "08"]
[TimeControl "180+2"]
[Date "2023.04.11"]
[WhiteClock "0:01:05"]
[BlackClock "0:02:21"]

1. e4 {[%clk 0:03:00]}  c6 {[%clk 0:02:58]} 2. d4 {[%clk 0:03:00]}  d5 {[%clk 0:02:58]} 3. e5 {[%clk 0:03:00]}  Bf5 {[%clk 0:02:59]} 4. Nf3 {[%clk 0:03:00]}  e6 {[%clk 0:02:58]} 5. Be2 {[%clk 0:03:01]}  Ne7 {[%clk 0:02:58]} 6. O-O {[%clk 0:03:00]}  Ng6 {[%clk 0:02:59]} 7. c4 {[%clk 0:02:52]}  dxc4 {[%clk 0:02:57]} 8. Bxc4 {[%clk 0:02:50]}  Nd7 {[%clk 0:02:57]} 9. Nc3 {[%clk 0:02:48]}  Nb6 {[%clk 0:02:55]} 10. Be2 {[%clk 0:02:47]}  Be7 {[%clk 0:02:55]} 11. Be3 {[%clk 0:02:45]}  O-O {[%clk 0:02:51]} 12. Rc1 {[%clk 0:02:42]}  Nh4 {[%clk 0:02:47]} 13. Nxh4 {[%clk 0:02:38]}  Bxh4 {[%clk 0:02:48]} 14. Bd3 {[%clk 0:02:25]}  Bxd3 {[%clk 0:02:45]} 15. Qxd3 {[%clk 0:02:26]}  Nd5 {[%clk 0:02:44]} 16. Nxd5 {[%clk 0:02:25]}  Qxd5 {[%clk 0:02:45]} 17. Rc5 {[%clk 0:02:21]}  Qxa2 {[%clk 0:02:44]} 18. Qa3 {[%clk 0:02:04]}  Qxa3 {[%clk 0:02:42]} 19. bxa3 {[%clk 0:02:05]}  Be7 {[%clk 0:02:41]} 20. Rc3 {[%clk 0:02:06]}  Rac8 {[%clk 0:02:40]} 21. Rb1 {[%clk 0:02:06]}  Rc7 {[%clk 0:02:39]} 22. Rcb3 {[%clk 0:02:05]}  b6 {[%clk 0:02:38]} 23. Kf1 {[%clk 0:02:04]}  Rfc8 {[%clk 0:02:38]} 24. Rc1 {[%clk 0:01:52]}  Kf8 {[%clk 0:02:34]} 25. Ke2 {[%clk 0:01:51]}  Ke8 {[%clk 0:02:33]} 26. Kd3 {[%clk 0:01:51]}  c5 {[%clk 0:02:31]} 27. dxc5 {[%clk 0:01:25]}  Bxc5 {[%clk 0:02:32]} 28. Bxc5 {[%clk 0:01:25]}  Rxc5 {[%clk 0:02:29]} 29. Rxc5 {[%clk 0:01:25]}  Rxc5 {[%clk 0:02:29]} 30. f4 {[%clk 0:01:26]}  Kd7 {[%clk 0:02:29]} 31. Rb2 {[%clk 0:01:22]}  Kc6 {[%clk 0:02:28]} 32. Kd4 {[%clk 0:01:17]}  b5 {[%clk 0:02:25]} 33. g4 {[%clk 0:01:16]}  Rc4+ {[%clk 0:02:21]} 34. Ke3 {[%clk 0:01:05]}  Rc3+ {[%clk 0:02:21]} 0-1


[Site "https://www.chess.com"]